[Event "Late-Titled-Tuesday-Blitz-March-26-2024"]
[Site "Chess.com"]
[Date "2024.03.26"]
[Round "11"]
[White "omeed_87"]
[Black "ozates"]
[Result "0-1"]
[WhiteElo "2439"]
[BlackElo "2570"]
[TimeControl "180+1"]
[EndTime "16:03:18 PDT"]
[Termination "ozates won by checkmate"]

1. d4 {[%clk 0:03:00.9]} 1... g6 {[%clk 0:02:57.9]} 2. Nc3 {[%clk 0:03:00.5]}
2... Bg7 {[%clk 0:02:57]} 3. e4 {[%clk 0:03:00.1]} 3... d6 {[%clk 0:02:55.7]} 4.
Be2 {[%clk 0:03:00]} 4... a6 {[%clk 0:02:56]} 5. a4 {[%clk 0:02:59.7]} 5... Nf6
{[%clk 0:02:55.3]} 6. Be3 {[%clk 0:02:58.8]} 6... O-O {[%clk 0:02:55]} 7. g4
{[%clk 0:02:57.3]} 7... c5 {[%clk 0:02:42.7]} 8. g5 {[%clk 0:02:54.9]} 8... Nfd7
{[%clk 0:02:42.2]} 9. h4 {[%clk 0:02:52.7]} 9... Nc6 {[%clk 0:02:42.1]} 10. Nf3
{[%clk 0:02:50.1]} 10... cxd4 {[%clk 0:02:40.2]} 11. Nxd4 {[%clk 0:02:49.8]}
11... Qa5 {[%clk 0:02:36.6]} 12. Nb3 {[%clk 0:02:45.8]} 12... Qd8 {[%clk
0:02:32.4]} 13. h5 {[%clk 0:02:39]} 13... Nde5 {[%clk 0:02:31.6]} 14. f4 {[%clk
0:02:37.1]} 14... Nd7 {[%clk 0:02:31.4]} 15. hxg6 {[%clk 0:02:21.2]} 15... hxg6
{[%clk 0:02:30.9]} 16. Bc4 {[%clk 0:02:19.1]} 16... Nb6 {[%clk 0:02:28.7]} 17.
Bd3 {[%clk 0:01:51.2]} 17... d5 {[%clk 0:02:26.3]} 18. Qd2 {[%clk 0:01:40]}
18... d4 {[%clk 0:02:24]} 19. Qh2 {[%clk 0:01:40.2]} 19... Re8 {[%clk
0:02:17.9]} 20. Qh7+ {[%clk 0:01:26]} 20... Kf8 {[%clk 0:02:16.9]} 21. O-O-O
{[%clk 0:01:01.8]} 21... dxe3 {[%clk 0:02:16.3]} 22. Bc4 {[%clk 0:00:52.5]}
22... Qc7 {[%clk 0:02:15.1]} 23. Rh4 {[%clk 0:00:30.5]} 23... Nb4 {[%clk
0:01:58.2]} 24. Rdh1 {[%clk 0:00:25.8]} 24... e6 {[%clk 0:01:42.7]} 25. f5
{[%clk 0:00:24.3]} 25... exf5 {[%clk 0:01:36.5]} 26. exf5 {[%clk 0:00:12.6]}
26... Bxf5 {[%clk 0:01:37.4]} 27. Be2 {[%clk 0:00:01.7]} 27... Nxc2 {[%clk
0:01:31.3]} 28. Bh5 {[%clk 0:00:02.2]} 28... e2 {[%clk 0:01:25]} 29. Bxg6 {[%clk
0:00:02.4]} 29... Bxg6 {[%clk 0:01:24.7]} 30. Qxg6 {[%clk 0:00:02]} 30... fxg6
{[%clk 0:01:23.2]} 31. Rf4+ {[%clk 0:00:01.7]} 31... Qxf4+ {[%clk 0:01:22.7]}
32. Kb1 {[%clk 0:00:02.6]} 32... e1=Q+ {[%clk 0:01:22.6]} 33. Ka2 {[%clk
0:00:03.5]} 33... Nb4+ {[%clk 0:01:17.8]} 34. Ka3 {[%clk 0:00:03.3]} 34... Qxh1
{[%clk 0:01:17.7]} 35. a5 {[%clk 0:00:03.1]} 35... Nc4+ {[%clk 0:01:12.5]} 36.
Kxb4 {[%clk 0:00:03.1]} 36... Qd6+ {[%clk 0:01:10.4]} 37. Nc5 {[%clk 0:00:03.1]}
37... Qhc6 {[%clk 0:01:06.8]} 38. Na4 {[%clk 0:00:02.2]} 38... Qb5# {[%clk
0:01:06.4]} 0-1

[Event "Late-Titled-Tuesday-Blitz-March-26-2024"]
[Site "Chess.com"]
[Date "2024.03.26"]
[Round "11"]
[White "Zhigalko_Sergei"]
[Black "CarlosjPineror"]
[Result "0-1"]
[WhiteElo "2870"]
[BlackElo "2750"]
[TimeControl "180+1"]
[EndTime "16:03:21 PDT"]
[Termination "CarlosjPineror won on time"]

1. e4 {[%clk 0:03:00.9]} 1... c5 {[%clk 0:02:59.8]} 2. c3 {[%clk 0:02:58.9]}
2... e6 {[%clk 0:02:59.7]} 3. d4 {[%clk 0:02:58.9]} 3... Nf6 {[%clk 0:02:59.8]}
4. e5 {[%clk 0:02:59.2]} 4... Nd5 {[%clk 0:02:59.1]} 5. Nf3 {[%clk 0:02:59.7]}
5... cxd4 {[%clk 0:02:59.4]} 6. cxd4 {[%clk 0:02:59.5]} 6... b6 {[%clk
0:03:00.1]} 7. Bc4 {[%clk 0:02:57.2]} 7... Bb7 {[%clk 0:03:00.2]} 8. O-O {[%clk
0:02:56.5]} 8... Na6 {[%clk 0:03:00.8]} 9. Nc3 {[%clk 0:02:42.3]} 9... Nac7
{[%clk 0:03:00.2]} 10. Ne4 {[%clk 0:02:42]} 10... Ne3 {[%clk 0:02:33.8]} 11.
Bxe3 {[%clk 0:02:12.6]} 11... Bxe4 {[%clk 0:02:33.4]} 12. Ng5 {[%clk 0:02:13.3]}
12... Bd5 {[%clk 0:02:20.9]} 13. Bxd5 {[%clk 0:02:12.3]} 13... Nxd5 {[%clk
0:02:20.7]} 14. Qh5 {[%clk 0:02:12.2]} 14... g6 {[%clk 0:02:20.4]} 15. Qf3
{[%clk 0:02:11.9]} 15... f5 {[%clk 0:02:11.2]} 16. Nh3 {[%clk 0:01:58]} 16...
Be7 {[%clk 0:02:06.4]} 17. Nf4 {[%clk 0:01:57.7]} 17... Nxf4 {[%clk 0:01:50.9]}
18. Bxf4 {[%clk 0:01:58.6]} 18... O-O {[%clk 0:01:44.8]} 19. d5 {[%clk
0:01:46.5]} 19... g5 {[%clk 0:01:44.7]} 20. Bd2 {[%clk 0:01:28.2]} 20... g4
{[%clk 0:01:45.1]} 21. Qd3 {[%clk 0:01:25.6]} 21... Bg5 {[%clk 0:01:40.4]} 22.
Rfd1 {[%clk 0:01:16.1]} 22... Bxd2 {[%clk 0:01:33.6]} 23. Qxd2 {[%clk 0:01:17]}
23... f4 {[%clk 0:01:34.1]} 24. Rac1 {[%clk 0:01:09.1]} 24... Qg5 {[%clk
0:01:33.7]} 25. dxe6 {[%clk 0:00:53.4]} 25... dxe6 {[%clk 0:01:33.3]} 26. Qd7
{[%clk 0:00:54]} 26... Qg6 {[%clk 0:01:28.7]} 27. Rd6 {[%clk 0:00:47.6]} 27...
Rae8 {[%clk 0:01:22.5]} 28. Qxa7 {[%clk 0:00:26.5]} 28... g3 {[%clk 0:01:22]}
29. Qxb6 {[%clk 0:00:20.5]} 29... gxh2+ {[%clk 0:01:18.8]} 30. Kh1 {[%clk
0:00:07.9]} 30... f3 {[%clk 0:01:19.3]} 31. gxf3 {[%clk 0:00:04.8]} 31... Kh8
{[%clk 0:01:08.1]} 32. Qd4 {[%clk 0:00:01.3]} 32... Rg8 {[%clk 0:01:04.9]} 33.
Qg4 {[%clk 0:00:01.8]} 33... Qh6 {[%clk 0:01:02.5]} 34. Qc4 {[%clk 0:00:01.4]}
34... Qh3 {[%clk 0:01:01.6]} 0-1

[Event "Late-Titled-Tuesday-Blitz-March-26-2024"]
[Site "Chess.com"]
[Date "2024.03.26"]
[Round "11"]
[White "FMYiLiu"]
[Black "azikom"]
[Result "0-1"]
[WhiteElo "2504"]
[BlackElo "2628"]
[TimeControl "180+1"]
[EndTime "16:03:21 PDT"]
[Termination "azikom won by resignation"]

1. d4 {[%clk 0:03:00.9]} 1... d5 {[%clk 0:02:59.6]} 2. Nc3 {[%clk 0:03:00.6]}
2... c6 {[%clk 0:02:57.3]} 3. Bf4 {[%clk 0:02:57.9]} 3... Qb6 {[%clk 0:02:55.5]}
4. e3 {[%clk 0:02:37.2]} 4... Qxb2 {[%clk 0:02:53.8]} 5. Nge2 {[%clk 0:02:37.8]}
5... Nf6 {[%clk 0:02:48.2]} 6. Rb1 {[%clk 0:02:37.1]} 6... Qa3 {[%clk 0:02:46]}
7. h4 {[%clk 0:02:36.3]} 7... Qa5 {[%clk 0:02:40.1]} 8. f3 {[%clk 0:02:30.6]}
8... Nbd7 {[%clk 0:02:38.7]} 9. h5 {[%clk 0:02:28.8]} 9... h6 {[%clk 0:02:38.1]}
10. Kf2 {[%clk 0:02:24.4]} 10... e6 {[%clk 0:02:34.9]} 11. e4 {[%clk 0:02:02.1]}
11... dxe4 {[%clk 0:02:32.7]} 12. Nxe4 {[%clk 0:02:02]} 12... Nxe4+ {[%clk
0:02:30.1]} 13. fxe4 {[%clk 0:02:01.5]} 13... e5 {[%clk 0:02:30.4]} 14. Bd2
{[%clk 0:01:59.3]} 14... Qd8 {[%clk 0:02:26.2]} 15. c3 {[%clk 0:01:58.5]} 15...
Qf6+ {[%clk 0:02:21.5]} 16. Kg1 {[%clk 0:01:58.7]} 16... Bd6 {[%clk 0:02:18]}
17. Rh3 {[%clk 0:01:54]} 17... Nb6 {[%clk 0:02:02.1]} 18. Rf3 {[%clk 0:01:54]}
18... Qe7 {[%clk 0:02:01.7]} 19. a4 {[%clk 0:01:46.7]} 19... Bg4 {[%clk
0:01:53.8]} 20. Rg3 {[%clk 0:01:45.8]} 20... Bxh5 {[%clk 0:01:51.2]} 21. a5
{[%clk 0:01:40.7]} 21... Nc4 {[%clk 0:01:50.5]} 22. Rxg7 {[%clk 0:01:40]} 22...
exd4 {[%clk 0:01:34.6]} 23. cxd4 {[%clk 0:01:38.1]} 23... Qxe4 {[%clk
0:01:15.5]} 24. Rxb7 {[%clk 0:01:34.5]} 24... Ne3 {[%clk 0:01:00]} 25. Bxe3
{[%clk 0:00:46.1]} 25... Qxe3+ {[%clk 0:01:00.9]} 26. Kh1 {[%clk 0:00:46.4]}
26... Kf8 {[%clk 0:00:51.3]} 27. Rb3 {[%clk 0:00:28.1]} 27... Qe4 {[%clk
0:00:44.4]} 28. Rgg3 {[%clk 0:00:19.9]} 28... Bxg3 {[%clk 0:00:41.4]} 29. Rxg3
{[%clk 0:00:20.8]} 29... Re8 {[%clk 0:00:41.4]} 0-1

[Event "Late-Titled-Tuesday-Blitz-March-26-2024"]
[Site "Chess.com"]
[Date "2024.03.26"]
[Round "11"]
[White "1g60-1"]
[Black "campochess"]
[Result "1-0"]
[WhiteElo "2394"]
[BlackElo "2187"]
[TimeControl "180+1"]
[EndTime "16:03:22 PDT"]
[Termination "1g60-1 won by checkmate"]

1. e4 {[%clk 0:03:00.9]} 1... c5 {[%clk 0:02:59.6]} 2. Nf3 {[%clk 0:03:01.4]}
2... Nc6 {[%clk 0:02:59.5]} 3. d4 {[%clk 0:03:01.3]} 3... cxd4 {[%clk
0:02:58.9]} 4. Nxd4 {[%clk 0:03:02.2]} 4... e5 {[%clk 0:02:58.5]} 5. Nb5 {[%clk
0:03:02]} 5... a6 {[%clk 0:02:58.6]} 6. Nd6+ {[%clk 0:03:01.5]} 6... Bxd6 {[%clk
0:02:58.6]} 7. Qxd6 {[%clk 0:03:02.4]} 7... Qe7 {[%clk 0:02:58.8]} 8. Qd3 {[%clk
0:03:01.7]} 8... Nf6 {[%clk 0:02:58.3]} 9. Nc3 {[%clk 0:02:59.9]} 9... d6 {[%clk
0:02:58.3]} 10. Bg5 {[%clk 0:02:59.3]} 10... Be6 {[%clk 0:02:58.3]} 11. Nd5
{[%clk 0:02:49.4]} 11... Bxd5 {[%clk 0:02:57.5]} 12. exd5 {[%clk 0:02:49.8]}
12... Nb8 {[%clk 0:02:53.2]} 13. O-O-O {[%clk 0:02:44.4]} 13... Nbd7 {[%clk
0:02:52.7]} 14. Kb1 {[%clk 0:02:43.8]} 14... O-O {[%clk 0:02:48.9]} 15. Be2
{[%clk 0:02:40.8]} 15... Rfc8 {[%clk 0:02:48.3]} 16. c4 {[%clk 0:02:38.4]} 16...
b5 {[%clk 0:02:46.9]} 17. Rc1 {[%clk 0:02:31.8]} 17... bxc4 {[%clk 0:02:46.4]}
18. Rxc4 {[%clk 0:02:31.4]} 18... Nc5 {[%clk 0:02:43.3]} 19. Qc2 {[%clk
0:02:28.4]} 19... Rcb8 {[%clk 0:02:37.2]} 20. Rc1 {[%clk 0:02:09.3]} 20... Rb6
{[%clk 0:02:34.8]} 21. Ka1 {[%clk 0:02:06.7]} 21... Rab8 {[%clk 0:02:34.7]} 22.
Bf3 {[%clk 0:02:02.2]} 22... h6 {[%clk 0:02:28.7]} 23. Bxf6 {[%clk 0:01:57.3]}
23... Qxf6 {[%clk 0:02:26.9]} 24. Rb1 {[%clk 0:01:29.7]} 24... Rb4 {[%clk
0:02:01.8]} 25. Rxb4 {[%clk 0:01:24.1]} 25... Rxb4 {[%clk 0:02:00.3]} 26. Qc3
{[%clk 0:01:18.3]} 26... Rd4 {[%clk 0:01:53.6]} 27. b4 {[%clk 0:01:10.4]} 27...
Nd3 {[%clk 0:01:52.7]} 28. Be2 {[%clk 0:00:59.1]} 28... Nxb4 {[%clk 0:01:46.9]}
29. Rxb4 {[%clk 0:00:53.4]} 29... Rxd5 {[%clk 0:01:40.8]} 30. Bd3 {[%clk
0:00:35.8]} 30... g6 {[%clk 0:01:38.3]} 31. Bc4 {[%clk 0:00:20.6]} 31... Rd1+
{[%clk 0:01:34.4]} 32. Rb1 {[%clk 0:00:18.5]} 32... Qxf2 {[%clk 0:01:33.9]} 33.
Rxd1 {[%clk 0:00:16.7]} 33... Qxg2 {[%clk 0:01:25.3]} 34. Qd3 {[%clk 0:00:14.5]}
34... Qxh2 {[%clk 0:01:16.3]} 35. Qxd6 {[%clk 0:00:14.4]} 35... Qf4 {[%clk
0:01:13.8]} 36. Qxg6+ {[%clk 0:00:11.7]} 36... Kf8 {[%clk 0:01:11.2]} 37. Qd3
{[%clk 0:00:07]} 37... h5 {[%clk 0:01:04.5]} 38. Rf1 {[%clk 0:00:06.2]} 38...
Qh2 {[%clk 0:01:02.7]} 39. Rxf7+ {[%clk 0:00:06.2]} 39... Ke8 {[%clk 0:01:01.9]}
40. Qd7# {[%clk 0:00:05.7]} 1-0

[Event "Late-Titled-Tuesday-Blitz-March-26-2024"]
[Site "Chess.com"]
[Date "2024.03.26"]
[Round "11"]
[White "ernestina08chess"]
[Black "gorgeous1083"]
[Result "1-0"]
[WhiteElo "2244"]
[BlackElo "2068"]
[TimeControl "180+1"]
[EndTime "16:03:32 PDT"]
[Termination "ernestina08chess won by resignation"]

1. e4 {[%clk 0:03:00.9]} 1... e6 {[%clk 0:03:00.3]} 2. d4 {[%clk 0:03:00.1]}
2... d5 {[%clk 0:03:01.2]} 3. e5 {[%clk 0:03:00.8]} 3... c5 {[%clk 0:03:00.9]}
4. c3 {[%clk 0:03:01.2]} 4... Qb6 {[%clk 0:03:01.3]} 5. Nf3 {[%clk 0:03:01.2]}
5... Nc6 {[%clk 0:03:01.9]} 6. Bd3 {[%clk 0:03:01.7]} 6... Bd7 {[%clk
0:03:02.4]} 7. O-O {[%clk 0:03:01.7]} 7... cxd4 {[%clk 0:03:02.3]} 8. Re1 {[%clk
0:03:01.6]} 8... a5 {[%clk 0:02:53.1]} 9. Nbd2 {[%clk 0:02:52.8]} 9... dxc3
{[%clk 0:02:52.5]} 10. bxc3 {[%clk 0:02:52.2]} 10... Bc5 {[%clk 0:02:51.8]} 11.
Qe2 {[%clk 0:02:50.9]} 11... Nge7 {[%clk 0:02:49.1]} 12. Rb1 {[%clk 0:02:49.8]}
12... Qc7 {[%clk 0:02:49.3]} 13. Nb3 {[%clk 0:02:49.1]} 13... b6 {[%clk
0:02:47.4]} 14. h4 {[%clk 0:02:23.3]} 14... h6 {[%clk 0:02:28.7]} 15. Nxc5
{[%clk 0:02:22.9]} 15... bxc5 {[%clk 0:02:28.3]} 16. Ba3 {[%clk 0:02:23.6]}
16... c4 {[%clk 0:02:26.1]} 17. Bc2 {[%clk 0:02:19.7]} 17... Na7 {[%clk
0:02:17.3]} 18. Bd6 {[%clk 0:02:15.7]} 18... Qc8 {[%clk 0:02:07.8]} 19. Nd4
{[%clk 0:02:04.5]} 19... Nec6 {[%clk 0:01:59.1]} 20. Nxc6 {[%clk 0:01:56.9]}
20... Bxc6 {[%clk 0:01:52.3]} 21. Qg4 {[%clk 0:01:56.7]} 21... g6 {[%clk
0:01:24.8]} 22. h5 {[%clk 0:01:22.1]} 22... g5 {[%clk 0:01:18]} 23. f4 {[%clk
0:01:15.3]} 23... Rg8 {[%clk 0:01:12.4]} 24. f5 {[%clk 0:01:12.1]} 24... Bd7
{[%clk 0:01:02.4]} 25. Rf1 {[%clk 0:01:04.3]} 25... Nb5 {[%clk 0:00:59.1]} 26.
fxe6 {[%clk 0:00:52.8]} 26... Bxe6 {[%clk 0:00:48.9]} 27. Bf5 {[%clk 0:00:50.7]}
27... Nxd6 {[%clk 0:00:44.9]} 28. exd6 {[%clk 0:00:49.3]} 28... Kd7 {[%clk
0:00:26.3]} 29. Bxe6+ {[%clk 0:00:43.7]} 29... fxe6 {[%clk 0:00:26.1]} 30. Rf7+
{[%clk 0:00:43.6]} 30... Kc6 {[%clk 0:00:16.6]} 31. Rc7+ {[%clk 0:00:42.2]}
31... Qxc7 {[%clk 0:00:16.1]} 32. dxc7 {[%clk 0:00:42.2]} 32... Kxc7 {[%clk
0:00:17]} 33. Qxe6 {[%clk 0:00:42.2]} 1-0

[Event "Late-Titled-Tuesday-Blitz-March-26-2024"]
[Site "Chess.com"]
[Date "2024.03.26"]
[Round "11"]
[White "Fh2411"]
[Black "giomar27"]
[Result "0-1"]
[WhiteElo "2571"]
[BlackElo "2468"]
[TimeControl "180+1"]
[EndTime "16:03:36 PDT"]
[Termination "giomar27 won by resignation"]

1. d4 {[%clk 0:02:57.7]} 1... f6 {[%clk 0:02:59.5]} 2. Nf3 {[%clk 0:02:56.5]}
2... g6 {[%clk 0:03:00]} 3. g3 {[%clk 0:02:57.3]} 3... Nh6 {[%clk 0:03:00.5]} 4.
Bg2 {[%clk 0:02:58.2]} 4... Nf7 {[%clk 0:03:01.2]} 5. O-O {[%clk 0:02:59.1]}
5... Bg7 {[%clk 0:03:01.9]} 6. e4 {[%clk 0:02:58.1]} 6... O-O {[%clk 0:03:02.3]}
7. Re1 {[%clk 0:02:58.1]} 7... d6 {[%clk 0:03:02.6]} 8. c4 {[%clk 0:02:42.2]}
8... Nc6 {[%clk 0:03:02.3]} 9. Nc3 {[%clk 0:02:42.6]} 9... e5 {[%clk 0:03:02.4]}
10. Be3 {[%clk 0:02:40.2]} 10... f5 {[%clk 0:03:01.2]} 11. d5 {[%clk 0:02:34.2]}
11... Ne7 {[%clk 0:03:01.1]} 12. c5 {[%clk 0:02:22.9]} 12... h6 {[%clk
0:02:59.9]} 13. Rc1 {[%clk 0:02:16.6]} 13... fxe4 {[%clk 0:02:49.4]} 14. Nd2
{[%clk 0:02:15.7]} 14... a6 {[%clk 0:02:44.7]} 15. Ndxe4 {[%clk 0:02:10.8]}
15... Nf5 {[%clk 0:02:44.2]} 16. Qd3 {[%clk 0:01:25.3]} 16... Nxe3 {[%clk
0:02:42.5]} 17. fxe3 {[%clk 0:01:17]} 17... Bf5 {[%clk 0:02:42.5]} 18. Qc4
{[%clk 0:01:14.9]} 18... Kh8 {[%clk 0:02:36.9]} 19. a4 {[%clk 0:01:13.8]} 19...
Ng5 {[%clk 0:02:34.9]} 20. Nxg5 {[%clk 0:01:08.6]} 20... Qxg5 {[%clk 0:02:35.8]}
21. Ne4 {[%clk 0:00:56.4]} 21... Qe7 {[%clk 0:02:35.5]} 22. a5 {[%clk
0:00:49.2]} 22... Rac8 {[%clk 0:02:30.8]} 23. Rf1 {[%clk 0:00:42.5]} 23... h5
{[%clk 0:02:26.3]} 24. Qb4 {[%clk 0:00:31.4]} 24... Bh6 {[%clk 0:02:25.3]} 25.
Rfe1 {[%clk 0:00:28.9]} 25... Bxe4 {[%clk 0:02:09.7]} 26. Bxe4 {[%clk
0:00:20.6]} 26... Qf6 {[%clk 0:02:09.8]} 27. Qd2 {[%clk 0:00:18]} 27... h4
{[%clk 0:01:49.5]} 28. g4 {[%clk 0:00:17.6]} 28... h3 {[%clk 0:01:48.8]} 29. Qe2
{[%clk 0:00:17.2]} 29... Qg5 {[%clk 0:01:40.2]} 30. b4 {[%clk 0:00:15]} 30...
Rcd8 {[%clk 0:01:27.2]} 31. cxd6 {[%clk 0:00:13.9]} 31... cxd6 {[%clk
0:01:27.6]} 32. Rc3 {[%clk 0:00:08]} 32... Rf6 {[%clk 0:01:27.1]} 33. Rf1 {[%clk
0:00:08.4]} 33... Rdf8 {[%clk 0:01:26.6]} 34. Rxf6 {[%clk 0:00:08.6]} 34... Qxf6
{[%clk 0:01:24.3]} 35. Rc1 {[%clk 0:00:08]} 35... Rf7 {[%clk 0:01:10.9]} 36. Rc3
{[%clk 0:00:07.1]} 36... Qh4 {[%clk 0:01:09]} 37. Rc1 {[%clk 0:00:06.7]} 37...
Kg7 {[%clk 0:01:08.8]} 38. Rc3 {[%clk 0:00:06.9]} 38... Qg5 {[%clk 0:00:58.7]}
39. Rc1 {[%clk 0:00:07.4]} 39... Qxe3+ {[%clk 0:00:58.5]} 0-1

[Event "Late-Titled-Tuesday-Blitz-March-26-2024"]
[Site "Chess.com"]
[Date "2024.03.26"]
[Round "11"]
[White "aghasiyevkamal"]
[Black "vladoboch"]
[Result "0-1"]
[WhiteElo "2633"]
[BlackElo "2512"]
[TimeControl "180+1"]
[EndTime "16:03:45 PDT"]
[Termination "vladoboch won by resignation"]

1. d4 {[%clk 0:03:00.9]} 1... Nf6 {[%clk 0:02:59.8]} 2. Nf3 {[%clk 0:02:59]}
2... g6 {[%clk 0:03:00]} 3. Bg5 {[%clk 0:02:57]} 3... Bg7 {[%clk 0:02:59.9]} 4.
Nbd2 {[%clk 0:02:57.1]} 4... d5 {[%clk 0:02:59.5]} 5. e3 {[%clk 0:02:56.1]} 5...
O-O {[%clk 0:02:58.9]} 6. Be2 {[%clk 0:02:56.4]} 6... c5 {[%clk 0:02:59.1]} 7.
O-O {[%clk 0:02:55.4]} 7... Nc6 {[%clk 0:02:59.7]} 8. c3 {[%clk 0:02:49.2]} 8...
Qb6 {[%clk 0:02:56.3]} 9. Qb3 {[%clk 0:02:44.7]} 9... c4 {[%clk 0:02:46]} 10.
Qa3 {[%clk 0:02:41.6]} 10... Qc7 {[%clk 0:02:21.3]} 11. b3 {[%clk 0:02:32.9]}
11... b5 {[%clk 0:02:04.9]} 12. Qc5 {[%clk 0:02:26.9]} 12... Qb6 {[%clk
0:01:55.2]} 13. Qxb6 {[%clk 0:02:18.8]} 13... axb6 {[%clk 0:01:56.1]} 14. Bxf6
{[%clk 0:02:17.6]} 14... Bxf6 {[%clk 0:01:51.8]} 15. e4 {[%clk 0:02:15.9]} 15...
e6 {[%clk 0:01:40.1]} 16. e5 {[%clk 0:01:38.4]} 16... Be7 {[%clk 0:01:19.3]} 17.
a4 {[%clk 0:01:37.5]} 17... b4 {[%clk 0:00:56.5]} 18. bxc4 {[%clk 0:01:37]}
18... bxc3 {[%clk 0:00:56]} 19. Nb3 {[%clk 0:01:36.9]} 19... dxc4 {[%clk
0:00:52.9]} 20. Bxc4 {[%clk 0:01:35.7]} 20... Na5 {[%clk 0:00:39.9]} 21. Nxa5
{[%clk 0:01:30.3]} 21... bxa5 {[%clk 0:00:40.8]} 22. d5 {[%clk 0:01:21.8]} 22...
exd5 {[%clk 0:00:35]} 23. Bxd5 {[%clk 0:01:21.9]} 23... Rb8 {[%clk 0:00:35.2]}
24. Nd4 {[%clk 0:01:20.7]} 24... Bc5 {[%clk 0:00:19.6]} 25. Nc6 {[%clk
0:01:10.6]} 25... Rb2 {[%clk 0:00:19.1]} 26. Rac1 {[%clk 0:01:06.9]} 26... Ba6
{[%clk 0:00:17]} 27. Rxc3 {[%clk 0:00:48.8]} 27... Bxf2+ {[%clk 0:00:16.9]} 28.
Kh1 {[%clk 0:00:41]} 28... Bxf1 {[%clk 0:00:16.8]} 29. g4 {[%clk 0:00:32.2]}
29... Rb1 {[%clk 0:00:12.5]} 30. Ba2 {[%clk 0:00:30.2]} 30... Ra1 {[%clk
0:00:10.7]} 31. Rf3 {[%clk 0:00:26.5]} 31... Bh3+ {[%clk 0:00:03.4]} 0-1

[Event "Late-Titled-Tuesday-Blitz-March-26-2024"]
[Site "Chess.com"]
[Date "2024.03.26"]
[Round "11"]
[White "Felix-Rose"]
[Black "Xavier_mompel"]
[Result "0-1"]
[WhiteElo "2275"]
[BlackElo "2366"]
[TimeControl "180+1"]
[EndTime "16:03:45 PDT"]
[Termination "Xavier_mompel won by resignation"]

1. e4 {[%clk 0:03:00.4]} 1... c5 {[%clk 0:03:00]} 2. Nf3 {[%clk 0:03:00.8]} 2...
d6 {[%clk 0:03:00.2]} 3. d4 {[%clk 0:03:01.3]} 3... cxd4 {[%clk 0:03:01.1]} 4.
Nxd4 {[%clk 0:03:01.6]} 4... Nf6 {[%clk 0:03:01.6]} 5. Nc3 {[%clk 0:03:01.8]}
5... a6 {[%clk 0:03:02]} 6. Be3 {[%clk 0:03:01.8]} 6... e5 {[%clk 0:03:02.3]} 7.
Nb3 {[%clk 0:03:02.2]} 7... Be7 {[%clk 0:03:02.4]} 8. f3 {[%clk 0:03:02.4]} 8...
Be6 {[%clk 0:02:59.5]} 9. Qd2 {[%clk 0:03:02.6]} 9... h5 {[%clk 0:02:59.6]} 10.
Nd5 {[%clk 0:02:53.3]} 10... Bxd5 {[%clk 0:02:57.5]} 11. exd5 {[%clk 0:02:53]}
11... Nbd7 {[%clk 0:02:57.1]} 12. a4 {[%clk 0:02:45.9]} 12... O-O {[%clk
0:02:50.2]} 13. a5 {[%clk 0:02:45.4]} 13... Qc7 {[%clk 0:02:47.4]} 14. Be2
{[%clk 0:02:43.9]} 14... b5 {[%clk 0:02:47.7]} 15. axb6 {[%clk 0:02:43.8]} 15...
Nxb6 {[%clk 0:02:47.7]} 16. Bxb6 {[%clk 0:02:31.6]} 16... Qxb6 {[%clk
0:02:48.6]} 17. Qa5 {[%clk 0:02:29.6]} 17... Qe3 {[%clk 0:02:29.7]} 18. Rd1
{[%clk 0:02:21.5]} 18... Bd8 {[%clk 0:02:12.7]} 19. Qd2 {[%clk 0:02:15.7]} 19...
Qa7 {[%clk 0:02:09.1]} 20. Na5 {[%clk 0:02:06.7]} 20... Bb6 {[%clk 0:02:00.9]}
21. Nc6 {[%clk 0:01:56.4]} 21... Bf2+ {[%clk 0:02:00]} 22. Kf1 {[%clk 0:01:57]}
22... Qb6 {[%clk 0:02:00.5]} 23. Bxa6 {[%clk 0:01:36.8]} 23... Be3 {[%clk
0:01:51.5]} 24. Qe2 {[%clk 0:00:40.7]} 24... Rxa6 {[%clk 0:01:40.6]} 25. Ne7+
{[%clk 0:00:38.4]} 25... Kh8 {[%clk 0:01:40.3]} 26. h4 {[%clk 0:00:32]} 26...
Ra2 {[%clk 0:01:28]} 27. g4 {[%clk 0:00:32]} 27... hxg4 {[%clk 0:01:13.8]} 28.
h5 {[%clk 0:00:27.9]} 28... g3 {[%clk 0:00:45.7]} 29. Ng6+ {[%clk 0:00:23.5]}
29... fxg6 {[%clk 0:00:41.3]} 30. hxg6+ {[%clk 0:00:20.7]} 30... Bh6 {[%clk
0:00:40.2]} 31. Qd2 {[%clk 0:00:19.4]} 31... Qf2+ {[%clk 0:00:36.5]} 32. Qxf2
{[%clk 0:00:19.3]} 32... gxf2 {[%clk 0:00:37.4]} 33. Rb1 {[%clk 0:00:17.7]}
33... Nxd5 {[%clk 0:00:35.1]} 34. b4 {[%clk 0:00:17.6]} 34... Rxc2 {[%clk
0:00:32.4]} 0-1

[Event "Late-Titled-Tuesday-Blitz-March-26-2024"]
[Site "Chess.com"]
[Date "2024.03.26"]
[Round "11"]
[White "expii"]
[Black "Chempiblinka"]
[Result "1-0"]
[WhiteElo "2228"]
[BlackElo "2370"]
[TimeControl "180+1"]
[EndTime "16:03:46 PDT"]
[Termination "expii won on time"]

1. e4 {[%clk 0:03:00.9]} 1... c5 {[%clk 0:02:59.2]} 2. Nf3 {[%clk 0:02:58]} 2...
g6 {[%clk 0:02:59.5]} 3. d4 {[%clk 0:02:57.5]} 3... cxd4 {[%clk 0:02:56.5]} 4.
Nxd4 {[%clk 0:02:58.4]} 4... Bg7 {[%clk 0:02:51.8]} 5. Nc3 {[%clk 0:02:57.6]}
5... Nc6 {[%clk 0:02:50.5]} 6. Be3 {[%clk 0:02:52.9]} 6... Nf6 {[%clk
0:02:47.2]} 7. f3 {[%clk 0:02:43.1]} 7... O-O {[%clk 0:02:45.6]} 8. Bc4 {[%clk
0:02:39.4]} 8... d6 {[%clk 0:02:43.4]} 9. O-O {[%clk 0:02:35.1]} 9... Qb6 {[%clk
0:02:39.7]} 10. Rb1 {[%clk 0:02:30]} 10... Nxe4 {[%clk 0:02:30.2]} 11. Nf5
{[%clk 0:02:23.9]} 11... Nxc3 {[%clk 0:02:12.8]} 12. bxc3 {[%clk 0:02:02.9]}
12... Qc7 {[%clk 0:02:08.5]} 13. Nxg7 {[%clk 0:01:59.4]} 13... Kxg7 {[%clk
0:02:08.9]} 14. Qd2 {[%clk 0:01:59.1]} 14... Ne5 {[%clk 0:02:06.4]} 15. Bh6+
{[%clk 0:01:57.1]} 15... Kg8 {[%clk 0:02:06]} 16. Bxf8 {[%clk 0:01:57.3]} 16...
Kxf8 {[%clk 0:01:54.2]} 17. Qh6+ {[%clk 0:01:56.6]} 17... Kg8 {[%clk 0:01:54.5]}
18. Bd3 {[%clk 0:01:54.2]} 18... Qxc3 {[%clk 0:01:52.6]} 19. Rbe1 {[%clk
0:01:49.8]} 19... Be6 {[%clk 0:01:49.8]} 20. f4 {[%clk 0:01:45.1]} 20... Nxd3
{[%clk 0:01:49.4]} 21. cxd3 {[%clk 0:01:41.5]} 21... Qxd3 {[%clk 0:01:48.4]} 22.
f5 {[%clk 0:01:28.5]} 22... Bc4 {[%clk 0:01:35.5]} 23. fxg6 {[%clk 0:01:23.4]}
23... hxg6 {[%clk 0:01:32.9]} 24. Rf3 {[%clk 0:01:17.5]} 24... Qd5 {[%clk
0:01:07.8]} 25. Rh3 {[%clk 0:01:13.7]} 25... Qd4+ {[%clk 0:00:54.2]} 26. Kh1
{[%clk 0:01:13]} 26... Qg7 {[%clk 0:00:54.5]} 27. Qh4 {[%clk 0:01:03.3]} 27...
Bxa2 {[%clk 0:00:35.5]} 28. Qxe7 {[%clk 0:00:49.6]} 28... Be6 {[%clk 0:00:31.3]}
29. Qxb7 {[%clk 0:00:42.1]} 29... Qf8 {[%clk 0:00:25.5]} 30. Rxe6 {[%clk
0:00:32.6]} 30... Rb8 {[%clk 0:00:20.4]} 31. Rxg6+ {[%clk 0:00:32]} 1-0